[Event "Championnat de France Universitaire Nan"]
[Site "Nancy, France"]
[Date "2020.02.08"]
[Round "1.1"]
[White "Rakotomaharo, Fy Antenaina"]
[Black "Akulyan, Lyova"]
[Result "1-0"]
[WhiteElo "2430"]
[BlackElo "1907"]
[PlyCount "47"]
[EventDate "2020.??.??"]
[TimeControl "15+5"]
[WhiteClock "0:07:45"]
[BlackClock "0:00:40"]

1. e4 {[%emt 0:00:02]} e5 {[%emt 0:00:02]} 2. Nf3 {[%emt 0:00:02]} Nc6 {[%emt
0:00:02]} 3. Bc4 {[%emt 0:00:08]} Bc5 {[%emt 0:00:03]} 4. c3 {[%emt 0:00:01]}
Nf6 {[%emt 0:00:02]} 5. d3 {[%emt 0:00:01]} h6 {[%emt 0:00:44]} 6. O-O {[%emt
0:00:07]} d6 {[%emt 0:00:06]} 7. Re1 {[%emt 0:00:08]} O-O {[%emt 0:01:55]} 8.
h3 {[%emt 0:00:13]} Be6 {[%emt 0:00:15]} 9. Bb5 {[%emt 0:00:31]} a6 {[%emt 0:
00:09]} 10. Bxc6 {[%emt 0:01:04]} bxc6 {[%emt 0:00:02]} 11. d4 {[%emt 0:00:01]}
exd4 {[%emt 0:00:14]} 12. cxd4 {[%emt 0:00:02]} Bb4 {[%emt 0:02:04]} 13. Bd2 {
[%emt 0:00:13]} Rb8 {[%emt 0:00:06]} 14. Nc3 {[%emt 0:00:08]} Re8 {[%emt 0:01:
05]} 15. Qc2 {[%emt 0:00:35]} c5 {[%emt 0:01:01]} 16. d5 {[%emt 0:00:20]} Bd7 {
[%emt 0:00:02]} 17. Bf4 {[%emt 0:00:46]} Bxc3 {[%emt 0:02:06]} 18. bxc3 {[%emt
0:00:02]} Rb6 {[%emt 0:00:32]} 19. Nd2 {[%emt 0:01:27]} Qe7 {[%emt 0:01:15]}
20. Nc4 {[%emt 0:00:40]} Rb7 {[%emt 0:00:40]} 21. Rad1 {[%emt 0:00:25]} Nxd5 {
[%emt 0:01:00]} 22. exd5 {[%emt 0:05:15]} Qxe1+ {[%emt 0:00:01]} 23. Rxe1 {
[%emt 0:00:01]} Rxe1+ {[%emt 0:00:02]} 24. Kh2 {[%emt 0:00:01]} 1-0

[Event "Championnat de France Universitaire Nan"]
[Site "Nancy, France"]
[Date "2020.02.08"]
[Round "1.2"]
[White "Bourgoin, Cecile"]
[Black "Msellek, Ilyass"]
[Result "0-1"]
[WhiteElo "1688"]
[BlackElo "2261"]
[PlyCount "72"]
[EventDate "2020.??.??"]
[TimeControl "15+5"]
[WhiteClock "0:00:59"]
[BlackClock "0:02:02"]

1. d4 {[%emt 0:00:03]} d6 {[%emt 0:01:18]} 2. Nf3 {[%emt 0:00:05]} g6 {[%emt 0:
00:04]} 3. Bf4 {[%emt 0:00:03]} Bg7 {[%emt 0:00:01]} 4. e3 {[%emt 0:00:02]} Nd7
{[%emt 0:00:10]} 5. h3 {[%emt 0:00:06]} e5 {[%emt 0:00:13]} 6. dxe5 {[%emt 0:
00:26]} dxe5 {[%emt 0:00:01]} 7. Bh2 {[%emt 0:00:20]} Ne7 {[%emt 0:00:08]} 8.
Nbd2 {[%emt 0:00:44]} O-O {[%emt 0:00:03]} 9. Bc4 {[%emt 0:00:27]} Nf5 {[%emt
0:00:53]} 10. c3 {[%emt 0:00:28]} Nd6 {[%emt 0:00:16]} 11. Bb3 {[%emt 0:00:20]}
b6 {[%emt 0:00:37]} 12. O-O {[%emt 0:00:17]} Ba6 {[%emt 0:00:06]} 13. Re1 {
[%emt 0:00:09]} Qe7 {[%emt 0:00:45]} 14. Bd5 {[%emt 0:00:57]} Rac8 {[%emt 0:00:
14]} 15. Ne4 {[%emt 0:00:35]} Nxe4 {[%emt 0:00:45]} 16. Bxe4 {[%emt 0:00:02]}
Nc5 {[%emt 0:00:04]} 17. Bc6 {[%emt 0:01:37]} Rfd8 {[%emt 0:00:12]} 18. Qc2 {
[%emt 0:00:37]} Bd3 {[%emt 0:01:40]} 19. Qc1 {[%emt 0:00:02]} Rd6 {[%emt 0:00:
09]} 20. Nd4 {[%emt 0:00:59]} exd4 {[%emt 0:01:13]} 21. exd4 {[%emt 0:00:12]}
Ne6 {[%emt 0:01:38]} 22. Bxd6 {[%emt 0:00:06]} Qxd6 {[%emt 0:00:01]} 23. Bf3 {
[%emt 0:00:17]} c5 {[%emt 0:00:27]} 24. dxc5 {[%emt 0:00:56]} bxc5 {[%emt 0:00:
11]} 25. Qd2 {[%emt 0:00:25]} c4 {[%emt 0:00:23]} 26. b3 {[%emt 0:00:11]} cxb3
{[%emt 0:00:18]} 27. axb3 {[%emt 0:00:57]} Bxc3 {[%emt 0:00:06]} 28. Qc1 {
[%emt 0:00:07]} Rc7 {[%emt 0:00:11]} 29. Rd1 {[%emt 0:02:53]} Bxa1 {[%emt 0:01:
06]} 30. Qxa1 {[%emt 0:00:00]} Qf4 {[%emt 0:00:39]} 31. Qa3 {[%emt 0:00:24]}
Be4 {[%emt 0:00:26]} 32. Bg4 {[%emt 0:00:28]} Bf5 {[%emt 0:00:19]} 33. Bf3 {
[%emt 0:00:06]} Bxh3 {[%emt 0:00:19]} 34. Bd5 {[%emt 0:01:09]} Rd7 {[%emt 0:00:
59]} 35. Qa4 {[%emt 0:00:24]} Qxa4 {[%emt 0:00:15]} 36. bxa4 {[%emt 0:00:02]}
Bxg2 {[%emt 0:00:05]} 0-1

[Event "Championnat de France Universitaire Nan"]
[Site "Nancy, France"]
[Date "2020.02.08"]
[Round "1.3"]
[White "Gatineau, Yovann"]
[Black "Budak, Lori"]
[Result "1-0"]
[WhiteElo "2381"]
[BlackElo "1655"]
[PlyCount "63"]
[EventDate "2020.??.??"]
[TimeControl "15+5"]
[WhiteClock "0:02:30"]
[BlackClock "0:00:08"]

1. d4 {[%emt 0:43:26]} Nf6 {[%emt 0:00:03]} 2. Bf4 {[%emt 0:00:01]} g6 {[%emt
0:00:02]} 3. Nc3 {[%emt 0:00:02]} Bg7 {[%emt 0:00:04]} 4. e4 {[%emt 0:00:02]}
d6 {[%emt 0:00:02]} 5. Qd2 {[%emt 0:00:02]} h5 {[%emt 0:00:13]} 6. O-O-O {
[%emt 0:00:08]} a6 {[%emt 0:01:12]} 7. f3 {[%emt 0:00:04]} b5 {[%emt 0:00:10]}
8. Kb1 {[%emt 0:00:08]} Nc6 {[%emt 0:00:50]} 9. h4 {[%emt 0:01:52]} Nd7 {[%emt
0:05:08]} 10. Be3 {[%emt 0:01:19]} Nb6 {[%emt 0:00:47]} 11. b3 {[%emt 0:00:33]}
Bd7 {[%emt 0:02:02]} 12. Nh3 {[%emt 0:01:34]} Qb8 {[%emt 0:01:29]} 13. Nd5 {
[%emt 0:01:30]} a5 {[%emt 0:01:21]} 14. Nxb6 {[%emt 0:00:08]} cxb6 {[%emt 0:00:
22]} 15. Bxb5 {[%emt 0:00:07]} a4 {[%emt 0:01:01]} 16. Nf4 {[%emt 0:00:01]}
axb3 {[%emt 0:00:32]} 17. cxb3 {[%emt 0:00:01]} Qa7 {[%emt 0:00:43]} 18. Ne2 {
[%emt 0:01:30]} Na5 {[%emt 0:00:06]} 19. Bxd7+ {[%emt 0:00:21]} Kxd7 {[%emt 0:
00:02]} 20. Nc1 {[%emt 0:01:03]} Rhc8 {[%emt 0:00:12]} 21. Qb2 {[%emt 0:01:48]}
Rc7 {[%emt 0:00:05]} 22. Ne2 {[%emt 0:00:24]} Rac8 {[%emt 0:00:04]} 23. Rc1 {
[%emt 0:00:01]} Rxc1+ {[%emt 0:00:19]} 24. Rxc1 {[%emt 0:00:01]} Rxc1+ {[%emt
0:00:02]} 25. Qxc1 {[%emt 0:00:04]} Nc6 {[%emt 0:00:04]} 26. Qc4 {[%emt 0:00:
09]} e6 {[%emt 0:00:15]} 27. Qb5 {[%emt 0:00:10]} Kc7 {[%emt 0:00:07]} 28. d5 {
[%emt 0:00:31]} Ne5 {[%emt 0:00:07]} 29. dxe6 {[%emt 0:00:07]} fxe6 {[%emt 0:
00:04]} 30. Nf4 {[%emt 0:00:11]} Qa3 {[%emt 0:00:09]} 31. Nxe6+ {[%emt 0:00:22]
} Kc8 {[%emt 0:00:05]} 32. Qxb6 {[%emt 0:00:52]} 1-0

[Event "Championnat de France Universitaire Nan"]
[Site "Nancy, France"]
[Date "2020.02.08"]
[Round "1.4"]
[White "Lucas, Charles"]
[Black "Daeschler, Florian"]
[Result "0-1"]
[WhiteElo "1626"]
[BlackElo "2327"]
[PlyCount "86"]
[EventDate "2020.??.??"]
[TimeControl "15+5"]
[WhiteClock "0:00:53"]
[BlackClock "0:01:59"]

1. d4 {[%emt 0:00:02]} d5 {[%emt 0:00:02]} 2. c4 {[%emt 0:00:01]} e6 {[%emt 0:
00:01]} 3. Nc3 {[%emt 0:00:01]} Nf6 {[%emt 0:00:01]} 4. Nf3 {[%emt 0:00:03]}
Be7 {[%emt 0:00:01]} 5. Bf4 {[%emt 0:00:09]} O-O {[%emt 0:00:02]} 6. e3 {[%emt
0:00:02]} b6 {[%emt 0:00:02]} 7. cxd5 {[%emt 0:00:30]} Nxd5 {[%emt 0:00:02]} 8.
Nxd5 {[%emt 0:00:10]} Qxd5 {[%emt 0:00:01]} 9. Bd3 {[%emt 0:02:03]} Bb4+ {
[%emt 0:00:19]} 10. Ke2 {[%emt 0:00:22]} Ba6 {[%emt 0:00:21]} 11. a3 {[%emt 0:
00:12]} Be7 {[%emt 0:00:09]} 12. Rc1 {[%emt 0:00:10]} Bd6 {[%emt 0:02:05]} 13.
Bxd6 {[%emt 0:01:15]} Bxd3+ {[%emt 0:02:05]} 14. Qxd3 {[%emt 0:00:03]} Qxd6 {
[%emt 0:01:07]} 15. Rc3 {[%emt 0:00:26]} Nd7 {[%emt 0:00:05]} 16. Rhc1 {[%emt
0:00:02]} c5 {[%emt 0:00:39]} 17. Ng5 {[%emt 0:02:02]} Qxh2 {[%emt 0:00:24]}
18. Nf3 {[%emt 0:03:55]} Qh5 {[%emt 0:00:19]} 19. b4 {[%emt 0:00:13]} cxd4 {
[%emt 0:00:21]} 20. Qxd4 {[%emt 0:00:16]} Nf6 {[%emt 0:00:07]} 21. Rc4 {[%emt
0:00:40]} Rad8 {[%emt 0:00:15]} 22. Qh4 {[%emt 0:00:31]} Qd5 {[%emt 0:01:58]}
23. Qd4 {[%emt 0:01:02]} Qb5 {[%emt 0:00:30]} 24. Qe5 {[%emt 0:00:06]} Rd5 {
[%emt 0:00:15]} 25. Qc7 {[%emt 0:00:10]} a5 {[%emt 0:00:29]} 26. Nd4 {[%emt 0:
00:14]} Qa4 {[%emt 0:00:38]} 27. R1c3 {[%emt 0:00:09]} Ne4 {[%emt 0:01:06]} 28.
bxa5 {[%emt 0:00:11]} Nxc3+ {[%emt 0:00:02]} 29. Rxc3 {[%emt 0:00:04]} Qxa5 {
[%emt 0:00:06]} 30. Rb3 {[%emt 0:00:12]} Qa6+ {[%emt 0:00:22]} 31. Kf3 {[%emt
0:00:13]} Qa8 {[%emt 0:00:37]} 32. Ke2 {[%emt 0:00:21]} Rxd4 {[%emt 0:00:22]}
33. exd4 {[%emt 0:00:03]} Qe4+ {[%emt 0:00:01]} 34. Re3 {[%emt 0:00:43]} Qxd4 {
[%emt 0:00:02]} 35. Qc3 {[%emt 0:00:02]} Qd5 {[%emt 0:00:09]} 36. f3 {[%emt 0:
00:05]} h6 {[%emt 0:00:06]} 37. Re5 {[%emt 0:00:04]} Qa2+ {[%emt 0:00:07]} 38.
Ke3 {[%emt 0:00:04]} Ra8 {[%emt 0:00:07]} 39. Kf4 {[%emt 0:00:37]} Qxg2 {[%emt
0:00:24]} 40. Rb5 {[%emt 0:00:12]} Ra4+ {[%emt 0:00:25]} 41. Ke3 {[%emt 0:00:
10]} Qg1+ {[%emt 0:00:07]} 42. Kd2 {[%emt 0:00:04]} Qf2+ {[%emt 0:00:04]} 43.
Kc1 {[%emt 0:00:06]} Qf1+ {[%emt 0:00:01]} 0-1

[Event "Championnat de France Universitaire Nan"]
[Site "Nancy, France"]
[Date "2020.02.08"]
[Round "1.5"]
[White "Defromont, Benjamin"]
[Black "Le Bihan, Alison"]
[Result "1-0"]
[WhiteElo "2263"]
[BlackElo "1724"]
[PlyCount "39"]
[EventDate "2020.??.??"]
[TimeControl "15+5"]
[WhiteClock "0:08:46"]
[BlackClock "0:01:20"]

1. e4 {[%emt 0:00:03]} c5 {[%emt 0:00:01]} 2. Nf3 {[%emt 0:00:02]} g6 {[%emt 0:
00:02]} 3. d4 {[%emt 0:00:05]} cxd4 {[%emt 0:00:02]} 4. Qxd4 {[%emt 0:00:03]}
Nf6 {[%emt 0:00:02]} 5. e5 {[%emt 0:00:04]} Nc6 {[%emt 0:00:02]} 6. Qa4 {[%emt
0:00:02]} Nd5 {[%emt 0:00:13]} 7. Qb3 {[%emt 0:00:03]} Nb6 {[%emt 0:00:06]} 8.
Bf4 {[%emt 0:00:41]} Bg7 {[%emt 0:01:18]} 9. Nc3 {[%emt 0:00:09]} O-O {[%emt 0:
02:20]} 10. O-O-O {[%emt 0:00:07]} Kh8 {[%emt 0:01:04]} 11. h4 {[%emt 0:00:21]}
Qe8 {[%emt 0:03:48]} 12. h5 {[%emt 0:01:26]} Kg8 {[%emt 0:02:29]} 13. hxg6 {
[%emt 0:00:53]} hxg6 {[%emt 0:00:07]} 14. Bd3 {[%emt 0:00:26]} e6 {[%emt 0:00:
32]} 15. Ne4 {[%emt 0:01:29]} Nd5 {[%emt 0:00:47]} 16. Bh6 {[%emt 0:00:16]}
Nce7 {[%emt 0:01:02]} 17. c4 {[%emt 0:01:30]} Nb6 {[%emt 0:01:07]} 18. Nf6+ {
[%emt 0:00:12]} Bxf6 {[%emt 0:00:05]} 19. exf6 {[%emt 0:00:02]} Nf5 {[%emt 0:
00:14]} 20. Bxf5 {[%emt 0:00:04]} 1-0

[Event "Championnat de France Universitaire Nan"]
[Site "Nancy, France"]
[Date "2020.02.08"]
[Round "1.6"]
[White "Negrier, Augustin"]
[Black "Belhadj, Seyfedine"]
[Result "0-1"]
[WhiteElo "1700"]
[BlackElo "1640"]
[PlyCount "74"]
[EventDate "2020.??.??"]
[TimeControl "15+5"]
[WhiteClock "0:00:12"]
[BlackClock "0:03:12"]

1. d4 {[%emt 0:00:02]} Nf6 {[%emt 0:00:02]} 2. Bf4 {[%emt 0:00:02]} d5 {[%emt
0:00:24]} 3. e3 {[%emt 0:00:05]} c5 {[%emt 0:00:06]} 4. Nd2 {[%emt 0:00:24]}
Nc6 {[%emt 0:00:09]} 5. c3 {[%emt 0:00:06]} Bf5 {[%emt 0:00:15]} 6. Ngf3 {
[%emt 0:00:28]} h6 {[%emt 0:00:08]} 7. Nb3 {[%emt 0:00:36]} c4 {[%emt 0:00:22]}
8. Nbd2 {[%emt 0:00:51]} e6 {[%emt 0:00:23]} 9. b3 {[%emt 0:00:08]} b5 {[%emt
0:01:15]} 10. a4 {[%emt 0:00:36]} b4 {[%emt 0:01:49]} 11. cxb4 {[%emt 0:02:36]}
c3 {[%emt 0:00:08]} 12. Bb5 {[%emt 0:01:33]} cxd2+ {[%emt 0:05:09]} 13. Qxd2 {
[%emt 0:00:06]} Qb6 {[%emt 0:00:34]} 14. O-O {[%emt 0:03:15]} a6 {[%emt 0:00:
21]} 15. Bxc6+ {[%emt 0:00:26]} Qxc6 {[%emt 0:00:01]} 16. Rac1 {[%emt 0:00:27]}
Qb6 {[%emt 0:00:06]} 17. b5 {[%emt 0:01:36]} axb5 {[%emt 0:00:36]} 18. Bc7 {
[%emt 0:00:12]} Qb7 {[%emt 0:00:20]} 19. a5 {[%emt 0:00:08]} Ba3 {[%emt 0:00:
10]} 20. Ra1 {[%emt 0:00:41]} Qxc7 {[%emt 0:00:02]} 21. Rxa3 {[%emt 0:00:02]}
O-O {[%emt 0:00:01]} 22. Rc1 {[%emt 0:00:05]} Qb7 {[%emt 0:00:10]} 23. b4 {
[%emt 0:00:31]} Ne4 {[%emt 0:00:07]} 24. Qe2 {[%emt 0:00:09]} Nd6 {[%emt 0:00:
05]} 25. Ne5 {[%emt 0:00:13]} Nc4 {[%emt 0:00:04]} 26. Rac3 {[%emt 0:00:03]} f6
{[%emt 0:00:18]} 27. Nd3 {[%emt 0:00:36]} Bxd3 {[%emt 0:00:06]} 28. Qxd3 {
[%emt 0:00:02]} Qe7 {[%emt 0:00:00]} 29. Rb3 {[%emt 0:00:13]} Ra7 {[%emt 0:00:
03]} 30. f3 {[%emt 0:00:05]} Rc8 {[%emt 0:00:01]} 31. e4 {[%emt 0:00:08]} Rac7
{[%emt 0:00:10]} 32. Ra1 {[%emt 0:00:24]} Qd6 {[%emt 0:00:09]} 33. f4 {[%emt 0:
00:24]} Qxf4 {[%emt 0:00:27]} 34. exd5 {[%emt 0:00:12]} exd5 {[%emt 0:00:08]}
35. a6 {[%emt 0:00:03]} Qe4 {[%emt 0:00:47]} 36. Qg3 {[%emt 0:00:22]} Qxd4+ {
[%emt 0:00:04]} 37. Kh1 {[%emt 0:00:03]} Qxa1+ {[%emt 0:00:02]} 0-1

[Event "Championnat de France Universitaire Nan"]
[Site "Nancy, France"]
[Date "2020.02.08"]
[Round "1.7"]
[White "Budak, Rewi"]
[Black "Bord, Romain"]
[Result "1-0"]
[WhiteElo "2079"]
[BlackElo "1534"]
[PlyCount "53"]
[EventDate "2020.??.??"]
[TimeControl "15+5"]
[WhiteClock "0:00:53"]
[BlackClock "0:00:24"]

1. e4 {[%emt 0:00:03]} e5 {[%emt 0:00:01]} 2. Bc4 {[%emt 0:00:02]} Nc6 {[%emt
0:00:02]} 3. Nf3 {[%emt 0:00:08]} Nf6 {[%emt 0:00:08]} 4. d4 {[%emt 0:00:00]}
exd4 {[%emt 0:00:03]} 5. Ng5 {[%emt 0:00:02]} d5 {[%emt 0:00:14]} 6. exd5 {
[%emt 0:00:02]} Na5 {[%emt 0:00:01]} 7. Qxd4 {[%emt 0:00:07]} Nxc4 {[%emt 0:00:
05]} 8. Qxc4 {[%emt 0:00:02]} Nxd5 {[%emt 0:01:40]} 9. O-O {[%emt 0:00:20]} Be7
{[%emt 0:00:21]} 10. Nc3 {[%emt 0:01:53]} c6 {[%emt 0:01:09]} 11. Nxd5 {[%emt
0:08:39]} Qxd5 {[%emt 0:01:40]} 12. Qxd5 {[%emt 0:00:14]} cxd5 {[%emt 0:00:00]}
13. Re1 {[%emt 0:00:07]} h6 {[%emt 0:01:22]} 14. Nf3 {[%emt 0:00:46]} Be6 {
[%emt 0:00:37]} 15. Bf4 {[%emt 0:00:24]} O-O-O {[%emt 0:02:19]} 16. Nd4 {[%emt
0:00:14]} Bd6 {[%emt 0:01:30]} 17. Be3 {[%emt 0:00:45]} a6 {[%emt 0:00:33]} 18.
Rac1 {[%emt 0:00:21]} Kd7 {[%emt 0:01:30]} 19. Rcd1 {[%emt 0:00:27]} Rc8 {
[%emt 0:01:01]} 20. c3 {[%emt 0:00:12]} Rhe8 {[%emt 0:00:56]} 21. f4 {[%emt 0:
00:18]} Bg4 {[%emt 0:00:10]} 22. Rd2 {[%emt 0:00:07]} Bxf4 {[%emt 0:00:11]} 23.
Nc2 {[%emt 0:00:26]} Bxe3+ {[%emt 0:00:35]} 24. Nxe3 {[%emt 0:00:09]} Rc5 {
[%emt 0:00:31]} 25. Kf2 {[%emt 0:00:03]} Be6 {[%emt 0:00:02]} 26. c4 {[%emt 0:
00:37]} Kc6 {[%emt 0:00:03]} 27. b4 {[%emt 0:00:57]} 1-0

[Event "Championnat de France Universitaire Nan"]
[Site "Nancy, France"]
[Date "2020.02.08"]
[Round "1.8"]
[White "Pelhate, Eric"]
[Black "Ginovart, Axel"]
[Result "0-1"]
[WhiteElo "1560"]
[BlackElo "2164"]
[PlyCount "64"]
[EventDate "2020.??.??"]
[TimeControl "15+5"]
[WhiteClock "0:00:19"]
[BlackClock "0:02:45"]

1. c4 {[%emt 0:00:01]} Nf6 {[%emt 0:00:04]} 2. Nc3 {[%emt 0:00:01]} d5 {[%emt
0:00:02]} 3. cxd5 {[%emt 0:00:02]} Nxd5 {[%emt 0:00:01]} 4. g3 {[%emt 0:00:09]}
c6 {[%emt 0:00:23]} 5. Bg2 {[%emt 0:00:02]} g6 {[%emt 0:00:11]} 6. d4 {[%emt 0:
00:35]} Bg7 {[%emt 0:00:12]} 7. e4 {[%emt 0:01:36]} Nb6 {[%emt 0:00:20]} 8. Be3
{[%emt 0:00:43]} Nc4 {[%emt 0:00:30]} 9. Qe2 {[%emt 0:01:02]} Nxe3 {[%emt 0:00:
44]} 10. fxe3 {[%emt 0:00:02]} b6 {[%emt 0:00:05]} 11. Nf3 {[%emt 0:01:09]} O-O
{[%emt 0:00:14]} 12. Qd2 {[%emt 0:01:37]} Ba6 {[%emt 0:00:26]} 13. Ne2 {[%emt
0:02:40]} e5 {[%emt 0:04:21]} 14. Rd1 {[%emt 0:00:08]} exd4 {[%emt 0:00:08]}
15. exd4 {[%emt 0:00:05]} Qe7 {[%emt 0:01:35]} 16. Qc2 {[%emt 0:01:41]} Re8 {
[%emt 0:01:47]} 17. e5 {[%emt 0:00:46]} Nd7 {[%emt 0:00:36]} 18. O-O {[%emt 0:
00:40]} c5 {[%emt 0:00:48]} 19. Rde1 {[%emt 0:01:02]} cxd4 {[%emt 0:00:19]} 20.
Nfxd4 {[%emt 0:00:20]} Rac8 {[%emt 0:00:00]} 21. Qb3 {[%emt 0:00:02]} Bc4 {
[%emt 0:00:12]} 22. Qf3 {[%emt 0:00:29]} Nxe5 {[%emt 0:00:07]} 23. Qf4 {[%emt
0:00:29]} Nd3 {[%emt 0:00:29]} 24. Nc6 {[%emt 0:00:16]} Rxc6 {[%emt 0:00:06]}
25. Bxc6 {[%emt 0:00:21]} Nxf4 {[%emt 0:00:01]} 26. Bxe8 {[%emt 0:00:02]} Nxe2+
{[%emt 0:00:01]} 27. Kf2 {[%emt 0:00:20]} Bd4+ {[%emt 0:00:02]} 28. Kg2 {[%emt
0:00:01]} Bd5+ {[%emt 0:00:12]} 29. Kh3 {[%emt 0:00:23]} Qe6+ {[%emt 0:00:18]}
30. g4 {[%emt 0:00:13]} Qxe8 {[%emt 0:00:45]} 31. Kh4 {[%emt 0:00:21]} Qe7+ {
[%emt 0:00:03]} 32. Kh3 {[%emt 0:00:02]} Qe3+ {[%emt 0:00:00]} 0-1

[Event "Championnat de France Universitaire Nan"]
[Site "Nancy, France"]
[Date "2020.02.08"]
[Round "2.1"]
[White "Buttard, Axel"]
[Black "Rakotomaharo, Fy Antenaina"]
[Result "0-1"]
[WhiteElo "1905"]
[BlackElo "2430"]
[PlyCount "42"]
[EventDate "2020.??.??"]
[TimeControl "15+5"]
[WhiteClock "0:00:07"]
[BlackClock "0:05:36"]

1. d4 {[%emt 0:00:00]} Nf6 {[%emt 0:00:02]} 2. Bf4 {[%emt 0:00:04]} g6 {[%emt
0:00:10]} 3. Nc3 {[%emt 0:00:08]} d5 {[%emt 0:00:00]} 4. Qd2 {[%emt 0:00:06]}
c6 {[%emt 0:00:04]} 5. O-O-O {[%emt 0:00:25]} Nbd7 {[%emt 0:00:08]} 6. h4 {
[%emt 0:00:37]} b5 {[%emt 0:00:06]} 7. e3 {[%emt 0:01:17]} Qa5 {[%emt 0:00:35]}
8. Kb1 {[%emt 0:00:15]} b4 {[%emt 0:00:13]} 9. Nce2 {[%emt 0:00:20]} Nb6 {
[%emt 0:01:51]} 10. Nc1 {[%emt 0:01:39]} Nc4 {[%emt 0:00:24]} 11. Qe1 {[%emt 0:
02:35]} Bg7 {[%emt 0:03:49]} 12. Nd3 {[%emt 0:02:04]} Ne4 {[%emt 0:00:31]} 13.
f3 {[%emt 0:03:07]} Nc3+ {[%emt 0:00:09]} 14. bxc3 {[%emt 0:01:07]} bxc3 {
[%emt 0:00:02]} 15. Ka1 {[%emt 0:00:53]} Na3 {[%emt 0:00:19]} 16. Qf2 {[%emt 0:
00:44]} Qa4 {[%emt 0:01:48]} 17. Rc1 {[%emt 0:00:11]} e5 {[%emt 0:00:05]} 18.
Bxe5 {[%emt 0:00:35]} Bxe5 {[%emt 0:00:06]} 19. Nxe5 {[%emt 0:00:18]} Rb8 {
[%emt 0:00:17]} 20. Nd3 {[%emt 0:00:07]} Rb2 {[%emt 0:00:33]} 21. Nc5 {[%emt 0:
00:07]} Nxc2+ {[%emt 0:00:05]} 0-1

[Event "Championnat de France Universitaire Nan"]
[Site "Nancy, France"]
[Date "2020.02.08"]
[Round "2.2"]
[White "Msellek, Ilyass"]
[Black "Kajganic, Fabien"]
[Result "1-0"]
[WhiteElo "2261"]
[BlackElo "1908"]
[PlyCount "63"]
[EventDate "2020.??.??"]
[TimeControl "15+5"]
[WhiteClock "0:01:48"]
[BlackClock "0:00:12"]

1. e4 {[%emt 0:00:00]} d6 {[%emt 0:00:03]} 2. d4 {[%emt 0:00:04]} g6 {[%emt 0:
00:03]} 3. h4 {[%emt 0:00:07]} Nf6 {[%emt 0:00:20]} 4. Nc3 {[%emt 0:00:25]} Bg7
{[%emt 0:00:03]} 5. Be2 {[%emt 0:00:26]} h5 {[%emt 0:00:10]} 6. Bg5 {[%emt 0:
00:12]} c6 {[%emt 0:00:28]} 7. Nh3 {[%emt 0:01:41]} Qa5 {[%emt 0:00:17]} 8. f3
{[%emt 0:01:13]} b5 {[%emt 0:00:41]} 9. a3 {[%emt 0:00:29]} Bxh3 {[%emt 0:01:
07]} 10. Rxh3 {[%emt 0:00:05]} Nbd7 {[%emt 0:00:24]} 11. Qd2 {[%emt 0:00:24]}
a6 {[%emt 0:02:14]} 12. Be3 {[%emt 0:02:06]} e5 {[%emt 0:02:16]} 13. dxe5 {
[%emt 0:00:46]} dxe5 {[%emt 0:00:04]} 14. Rh1 {[%emt 0:01:41]} Rd8 {[%emt 0:00:
13]} 15. Kf2 {[%emt 0:00:24]} Nf8 {[%emt 0:01:37]} 16. Qc1 {[%emt 0:00:29]} Ne6
{[%emt 0:00:06]} 17. Na2 {[%emt 0:00:45]} Nd4 {[%emt 0:02:35]} 18. Nb4 {[%emt
0:00:01]} Rd6 {[%emt 0:00:33]} 19. Bxd4 {[%emt 0:00:11]} exd4 {[%emt 0:00:36]}
20. e5 {[%emt 0:00:13]} Bh6 {[%emt 0:00:15]} 21. f4 {[%emt 0:02:07]} d3 {[%emt
0:01:06]} 22. exd6 {[%emt 0:00:21]} Qb6+ {[%emt 0:01:14]} 23. Qe3+ {[%emt 0:00:
37]} Qxe3+ {[%emt 0:00:22]} 24. Kxe3 {[%emt 0:00:02]} dxe2 {[%emt 0:00:01]} 25.
Nxc6 {[%emt 0:00:19]} Nd5+ {[%emt 0:00:08]} 26. Kxe2 {[%emt 0:00:02]} Nxf4+ {
[%emt 0:00:01]} 27. Kf3 {[%emt 0:00:00]} Ne6 {[%emt 0:00:06]} 28. Rad1 {[%emt
0:00:09]} Kd7 {[%emt 0:00:16]} 29. Ne5+ {[%emt 0:00:01]} Kc8 {[%emt 0:00:07]}
30. Rhe1 {[%emt 0:00:24]} f6 {[%emt 0:00:06]} 31. d7+ {[%emt 0:00:06]} Kc7 {
[%emt 0:00:01]} 32. Nf7 {[%emt 0:00:03]} 1-0

[Event "Championnat de France Universitaire Nan"]
[Site "Nancy, France"]
[Date "2020.02.08"]
[Round "2.3"]
[White "Condat, Hugo"]
[Black "Gatineau, Yovann"]
[Result "0-1"]
[WhiteElo "1946"]
[BlackElo "2381"]
[PlyCount "106"]
[EventDate "2020.??.??"]
[TimeControl "15+5"]
[WhiteClock "0:05:36"]
[BlackClock "0:00:55"]

1. e4 {[%emt 0:00:01]} c5 {[%emt 0:00:03]} 2. Nf3 {[%emt 0:00:00]} d6 {[%emt 0:
00:00]} 3. d4 {[%emt 0:00:00]} Nf6 {[%emt 0:00:02]} 4. Nc3 {[%emt 0:00:14]}
cxd4 {[%emt 0:00:02]} 5. Qxd4 {[%emt 0:00:02]} e5 {[%emt 0:00:01]} 6. Bb5+ {
[%emt 0:00:05]} Nbd7 {[%emt 0:00:01]} 7. Qe3 {[%emt 0:00:12]} a6 {[%emt 0:00:
22]} 8. Bc4 {[%emt 0:00:38]} b5 {[%emt 0:00:24]} 9. Bd5 {[%emt 0:00:17]} Nxd5 {
[%emt 0:00:14]} 10. Nxd5 {[%emt 0:00:03]} Bb7 {[%emt 0:00:16]} 11. O-O {[%emt
0:00:24]} Bxd5 {[%emt 0:00:07]} 12. exd5 {[%emt 0:00:02]} Be7 {[%emt 0:00:01]}
13. Rd1 {[%emt 0:00:19]} O-O {[%emt 0:00:03]} 14. Qe2 {[%emt 0:00:10]} Nb6 {
[%emt 0:00:15]} 15. Be3 {[%emt 0:00:10]} f5 {[%emt 0:00:06]} 16. Bxb6 {[%emt 0:
00:08]} Qxb6 {[%emt 0:00:02]} 17. a4 {[%emt 0:00:31]} Bf6 {[%emt 0:00:52]} 18.
axb5 {[%emt 0:00:10]} e4 {[%emt 0:00:24]} 19. Nd2 {[%emt 0:00:02]} axb5 {[%emt
0:00:06]} 20. c3 {[%emt 0:00:11]} Be5 {[%emt 0:00:51]} 21. Nb3 {[%emt 0:00:14]}
b4 {[%emt 0:01:02]} 22. Nd4 {[%emt 0:00:45]} Rxa1 {[%emt 0:01:27]} 23. Rxa1 {
[%emt 0:00:11]} Bxd4 {[%emt 0:00:15]} 24. cxd4 {[%emt 0:00:03]} Qxd4 {[%emt 0:
00:01]} 25. Rd1 {[%emt 0:00:35]} Qc5 {[%emt 0:00:03]} 26. h3 {[%emt 0:00:09]}
h6 {[%emt 0:00:21]} 27. Qd2 {[%emt 0:00:10]} f4 {[%emt 0:03:22]} 28. Qd4 {
[%emt 0:00:12]} Qc2 {[%emt 0:00:53]} 29. Rd2 {[%emt 0:00:29]} Qc5 {[%emt 0:01:
27]} 30. Qxc5 {[%emt 0:00:16]} dxc5 {[%emt 0:00:02]} 31. Rc2 {[%emt 0:00:00]}
Rc8 {[%emt 0:01:08]} 32. Rc4 {[%emt 0:00:02]} e3 {[%emt 0:00:02]} 33. fxe3 {
[%emt 0:00:04]} fxe3 {[%emt 0:00:00]} 34. Kf1 {[%emt 0:00:02]} Kf7 {[%emt 0:00:
24]} 35. Re4 {[%emt 0:01:59]} Rd8 {[%emt 0:01:05]} 36. Ke2 {[%emt 0:01:39]}
Rxd5 {[%emt 0:00:06]} 37. Kxe3 {[%emt 0:00:02]} Kf6 {[%emt 0:00:04]} 38. Rc4 {
[%emt 0:00:25]} Ke6 {[%emt 0:00:05]} 39. h4 {[%emt 0:00:43]} Kd6 {[%emt 0:00:
25]} 40. Rg4 {[%emt 0:00:09]} Re5+ {[%emt 0:00:02]} 41. Kd3 {[%emt 0:00:14]} g5
{[%emt 0:00:27]} 42. hxg5 {[%emt 0:00:15]} Rxg5 {[%emt 0:00:11]} 43. Rh4 {
[%emt 0:00:02]} h5 {[%emt 0:00:40]} 44. Rh3 {[%emt 0:00:29]} Rxg2 {[%emt 0:00:
37]} 45. Rxh5 {[%emt 0:00:14]} Rxb2 {[%emt 0:00:01]} 46. Rh6+ {[%emt 0:00:11]}
Kd5 {[%emt 0:00:02]} 47. Rh5+ {[%emt 0:00:02]} Kc6 {[%emt 0:00:01]} 48. Kc4 {
[%emt 0:00:15]} Rc2+ {[%emt 0:00:03]} 49. Kb3 {[%emt 0:00:00]} Rc3+ {[%emt 0:
00:01]} 50. Kb2 {[%emt 0:00:01]} Kb5 {[%emt 0:00:01]} 51. Rh8 {[%emt 0:00:07]}
Rg3 {[%emt 0:00:02]} 52. Rh4 {[%emt 0:00:10]} Rg2+ {[%emt 0:00:04]} 53. Kb1 {
[%emt 0:00:06]} c4 {[%emt 0:00:04]} 0-1